bitfinex/quotes_BTCUSD_20250124
["timestamp","ask_amount","ask_price","bid_price","bid_amount"]
[1737743411787,1.08255729,106840.0,106810.0,0.78825559]
[1737743411976,0.985211,106840.0,106810.0,0.90060359]
[1737743412194,0.48827059,106840.0,106810.0,0.46956654]
[1737743412402,0.140423,106820.0,106810.0,0.46956654]
[1737743412631,0.327641,106830.0,106810.0,0.46956654]
[1737743412841,0.327641,106830.0,106810.0,0.55283264]
[1737743413058,0.71056865,106850.0,106820.0,0.24459]
[1737743413264,0.76111994,106850.0,106820.0,0.903801]
[1737743413491,0.33619465,106850.0,106830.0,0.196572]
[1737743413703,0.47658165,106850.0,106830.0,0.552275]
[1737743413943,0.33619465,106850.0,106830.0,0.552275]
[1737743414154,0.33619465,106850.0,106830.0,0.664602]
[1737743414358,0.33619465,106850.0,106830.0,0.776923]
[1737743414566,0.33619465,106850.0,106830.0,0.664596]
[1737743414931,0.33619465,106850.0,106830.0,0.776923]
[1737743415293,0.33619465,106850.0,106830.0,0.776918]
[1737743415498,0.33619465,106850.0,106840.0,0.084238]
[1737743415704,0.01579465,106850.0,106840.0,0.552228]
[1737743416055,0.140371,106860.0,106840.0,0.552228]
[1737743416278,0.835075,106870.0,106840.0,0.664544]
[1737743416552,0.93242229,106870.0,106840.0,0.664544]
[1737743416759,0.14037,106860.0,106850.0,0.0788]
[1737743417045,0.14037,106860.0,106850.0,0.46795]
[1737743418353,0.46077,106860.0,106850.0,0.46795]
[1737743418908,0.89218788,106860.0,106850.0,0.46795]
[1737743419109,0.57178788,106860.0,106850.0,0.46795]
[1737743419747,0.57178788,106860.0,106850.0,0.44895513]
[1737743419952,0.61786788,106860.0,106850.0,0.41894635]
[1737743420327,0.62786788,106860.0,106850.0,0.41894635]
[1737743421053,0.57178788,106860.0,106850.0,0.41894635]
[1737743421520,0.56178788,106860.0,106850.0,0.41894635]
[1737743422176,0.57178788,106860.0,106850.0,0.41894635]
[1737743422384,0.56178788,106860.0,106850.0,0.41894635]
[1737743422568,0.53878788,106860.0,106850.0,0.41894635]
[1737743423271,0.57178788,106860.0,106850.0,0.41894635]
[1737743423451,0.59059695,106860.0,106850.0,0.41894635]
[1737743423685,0.40652636,106860.0,106850.0,0.41894635]
[1737743424257,0.25652636,106860.0,106850.0,0.41894635]
[1737743424567,0.40652636,106860.0,106850.0,0.41894635]
[1737743425023,0.40682436,106860.0,106850.0,0.41894635]
[1737743425539,0.59089495,106860.0,106850.0,0.41894635]
[1737743428089,0.73533495,106860.0,106850.0,0.20470024]
[1737743428475,0.71652588,106860.0,106850.0,0.10467648]
[1737743428609,0.62816588,106860.0,106850.0,0.10467648]
[1737743428810,0.61816588,106860.0,106850.0,0.10467648]
[1737743430037,0.57208588,106860.0,106850.0,0.10467648]
[1737743431470,0.56208588,106860.0,106850.0,0.07521648]
[1737743432789,0.66208588,106860.0,106850.0,0.07521648]
[1737743432967,0.68056095,106860.0,106850.0,0.07521648]
[1737743434157,0.140409,106830.0,106820.0,0.048993]
[1737743434342,0.38882688,106830.0,106820.0,0.04948464]
[1737743434546,0.38882688,106830.0,106820.0,0.04849164]
[1737743434745,0.23775629,106830.0,106820.0,0.04849164]
[1737743436091,0.33775629,106830.0,106820.0,0.04849164]
[1737743437739,0.67182688,106830.0,106820.0,0.00049164]
[1737743438294,0.68493219,106830.0,106820.0,0.00049164]
[1737743439613,0.57184088,106820.0,106810.0,0.0001419]
[1737743442547,0.323436,106810.0,106800.0,0.0011358]
[1737743442755,0.57185388,106810.0,106800.0,0.0011358]
[1737743442919,0.57185388,106810.0,106800.0,0.0001419]
[1737743443120,0.56185388,106810.0,106800.0,0.0001419]
[1737743443325,0.56185388,106810.0,106800.0,5.466e-05]
[1737743445462,0.32451959,106800.0,106790.0,0.00010931]
[1737743445663,0.42186688,106800.0,106790.0,0.00010931]
[1737743446764,0.23779629,106800.0,106790.0,0.08230931]
[1737743447780,0.33875548,106800.0,106790.0,0.08230931]
[1737743448217,0.75915548,106800.0,106790.0,0.08230931]
[1737743448868,0.77250191,106800.0,106790.0,0.08230931]
[1737743449255,0.77250191,106800.0,106790.0,0.07713931]
[1737743449438,0.67154272,106800.0,106790.0,0.07713931]
[1737743449598,0.67154272,106800.0,106790.0,0.07728111]
[1737743451469,0.68979732,106800.0,106790.0,0.07728111]
[1737743452333,0.45200103,106800.0,106790.0,0.07728111]
[1737743452540,0.45200103,106800.0,106790.0,0.12648111]
[1737743452744,0.58374643,106800.0,106790.0,0.12648111]
[1737743454150,0.43374643,106800.0,106790.0,0.12648111]
[1737743454354,0.11334643,106800.0,106790.0,0.22480411]
[1737743454529,0.1,106800.0,106790.0,0.3221514]
[1737743455747,0.1,106800.0,106790.0,0.22480411]
[1737743456659,0.1,106800.0,106790.0,0.23384411]
[1737743457063,0.1,106800.0,106790.0,0.13552111]
[1737743458456,0.070918,106800.0,106790.0,0.13552111]
[1737743458637,0.070918,106800.0,106790.0,0.23384411]
[1737743459970,0.070918,106800.0,106790.0,0.70203411]
[1737743461046,0.070918,106800.0,106790.0,0.7993814]
[1737743461254,0.070918,106800.0,106790.0,0.8193814]
[1737743462147,0.100298,106810.0,106800.0,0.247214]
[1737743462360,0.100298,106810.0,106800.0,0.34456129]
[1737743462571,0.11395715,106830.0,106800.0,0.96272129]
[1737743462793,0.10049125,106830.0,106820.0,0.193896]
[1737743463029,0.10049125,106830.0,106820.0,0.29124329]
[1737743463244,0.10049125,106830.0,106820.0,0.75932329]
[1737743464287,0.02239125,106830.0,106820.0,0.96518329]
[1737743464467,0.100298,106860.0,106850.0,0.226568]
[1737743464621,0.100298,106860.0,106850.0,0.79186529]
[1737743464834,0.100298,106860.0,106850.0,0.81186529]
[1737743466907,0.100298,106860.0,106850.0,0.96186529]
[1737743467507,0.100298,106860.0,106850.0,0.81186529]
[1737743467716,0.100298,106860.0,106850.0,0.79186529]
[1737743468246,0.100298,106860.0,106850.0,0.81186529]
[1737743469611,0.100298,106860.0,106850.0,0.96186529]
[1737743470224,0.200298,106860.0,106850.0,0.94186529]
[1737743470436,0.06842289,106860.0,106850.0,0.96186529]
[1737743472717,0.06842289,106860.0,106850.0,0.97094529]
[1737743474026,0.06872089,106860.0,106850.0,0.97094529]
[1737743474209,0.16872089,106860.0,106850.0,0.97094529]
[1737743475917,0.16872089,106860.0,106850.0,0.96186529]
[1737743476105,0.16872089,106860.0,106850.0,0.95090529]
[1737743476493,0.16872089,106860.0,106850.0,0.79186529]
[1737743476707,0.16872089,106860.0,106850.0,0.80102529]
[1737743476884,0.16872089,106860.0,106850.0,0.69272529]
[1737743477086,0.16872089,106860.0,106850.0,0.68356529]
[1737743477286,0.16872089,106860.0,106850.0,0.69284529]
[1737743477581,0.16872089,106860.0,106850.0,0.67284529]
[1737743477991,0.16872089,106860.0,106850.0,0.69284529]
[1737743480797,0.16872089,106860.0,106850.0,0.77204529]
[1737743481211,0.16872089,106860.0,106850.0,0.96974529]
[1737743482151,0.16872089,106860.0,106850.0,0.94974529]
[1737743482538,0.16872089,106860.0,106850.0,0.96974529]
[1737743482735,0.16872089,106860.0,106850.0,0.96046529]
[1737743482942,0.16872089,106860.0,106850.0,0.69300529]
[1737743483152,0.16872089,106860.0,106850.0,0.67300529]
[1737743483508,0.16872089,106860.0,106850.0,0.69300529]
[1737743483705,0.16872089,106860.0,106850.0,0.69308529]
[1737743484967,0.16872089,106860.0,106850.0,0.67308529]
[1737743485175,0.16872089,106860.0,106850.0,0.66356529]
[1737743485382,0.16872089,106860.0,106850.0,0.56529729]
[1737743485595,0.30909089,106860.0,106850.0,0.46795]
[1737743485806,0.83498599,106860.0,106850.0,0.46795]
[1737743486042,0.93233328,106860.0,106850.0,0.46795]
[1737743486245,0.95533328,106860.0,106850.0,0.4680918]
[1737743486424,0.86798599,106860.0,106850.0,0.4680918]
[1737743487866,0.85798599,106860.0,106850.0,0.46096188]
[1737743488064,0.336896,106840.0,106830.0,0.0009914]
[1737743488242,0.336896,106840.0,106830.0,9.157e-05]
[1737743488243,0.73673891,106840.0,106830.0,9.157e-05]
[1737743488596,0.5954911,106840.0,106830.0,5.157e-05]
[1737743489832,0.62854744,106840.0,106830.0,5.157e-05]
[1737743489993,0.78393891,106840.0,106830.0,5.157e-05]
[1737743490859,0.80693891,106840.0,106830.0,5.157e-05]
[1737743492301,0.140449,106800.0,106790.0,0.0001418]
[1737743492541,0.140449,106800.0,106790.0,0.00063305]
[1737743494756,0.29169681,106800.0,106790.0,0.00063305]
[1737743494933,0.5390441,106800.0,106790.0,0.00063305]
[1737743495135,0.290449,106800.0,106790.0,0.00063305]
[1737743496453,0.15218149,106800.0,106790.0,0.00063305]
[1737743496690,0.01173249,106800.0,106790.0,0.00063305]
[1737743497099,0.327702,106810.0,106790.0,0.00063305]
[1737743497312,0.42504929,106810.0,106790.0,0.00063305]
[1737743497490,0.61230629,106810.0,106790.0,0.00063305]
[1737743497958,0.79956629,106810.0,106790.0,0.00063305]
[1737743498167,0.61230629,106810.0,106790.0,0.00063305]
[1737743498355,0.79956629,106810.0,106790.0,0.00063305]
[1737743498736,0.61230629,106810.0,106790.0,0.00063305]
[1737743498911,0.79956529,106810.0,106790.0,0.00063305]
[1737743499262,0.140449,106800.0,106790.0,0.00063305]
[1737743500038,0.62442177,106810.0,106790.0,0.00063305]
[1737743500492,0.52707448,106810.0,106790.0,0.00063305]
[1737743500850,0.33981748,106810.0,106790.0,0.00063305]
[1737743501205,0.15,106800.0,106790.0,0.00063305]
[1737743502200,0.33981748,106810.0,106790.0,0.00063305]
[1737743502493,0.33981148,106810.0,106790.0,0.00063305]
[1737743502895,0.33981148,106810.0,106790.0,0.09895605]
[1737743503093,0.15256248,106810.0,106790.0,0.09895605]
[1737743503242,0.15256248,106810.0,106790.0,0.23005405]
[1737743503437,0.16211548,106810.0,106790.0,0.23005405]
[1737743503652,0.01211548,106810.0,106790.0,0.36114005]
[1737743504036,0.327627,106830.0,106800.0,0.53965665]
[1737743504242,0.514841,106830.0,106800.0,0.53872029]
[1737743504420,0.327627,106830.0,106800.0,0.53872029]
[1737743504623,0.15,106820.0,106800.0,0.53872029]
[1737743505186,0.15,106820.0,106810.0,0.098305]
[1737743505996,0.15,106820.0,106800.0,0.66979829]
[1737743506206,0.15,106820.0,106800.0,0.53871929]
[1737743506416,0.15,106820.0,106810.0,0.098305]
[1737743506841,0.01169238,106830.0,106820.0,0.098296]
[1737743507045,0.000298,106840.0,106820.0,0.098296]
[1737743507252,0.000298,106840.0,106830.0,0.0821]
[1737743507487,0.000298,106840.0,106830.0,0.180386]
[1737743508265,0.000298,106840.0,106830.0,0.0821]
[1737743508474,0.290694,106840.0,106830.0,0.0821]
[1737743509084,0.15,106830.0,106810.0,0.32685129]
[1737743509284,0.15,106830.0,106810.0,0.58948754]
[1737743509612,0.000298,106840.0,106830.0,0.098286]
[1737743509816,0.000298,106840.0,106830.0,0.19563329]
[1737743510164,0.000298,106840.0,106830.0,0.49633329]
[1737743510379,0.16872089,106860.0,106850.0,0.248968]
[1737743510681,0.16872089,106860.0,106850.0,0.49631529]
[1737743510926,0.16872089,106860.0,106850.0,0.96426529]
[1737743511632,0.16872089,106860.0,106850.0,0.81426529]
[1737743513959,0.16872089,106860.0,106850.0,0.79426529]
[1737743515912,0.16872089,106860.0,106850.0,0.80410529]
[1737743516207,0.16872089,106860.0,106850.0,0.79426529]
[1737743516564,0.16872089,106860.0,106850.0,0.80410529]
[1737743516938,0.16872089,106860.0,106850.0,0.82410529]
[1737743517342,0.16872089,106860.0,106850.0,0.80410529]
[1737743517472,0.16872089,106860.0,106850.0,0.82410529]
[1737743518102,0.16872089,106860.0,106850.0,0.80410529]
[1737743519078,0.16872089,106860.0,106850.0,0.82410529]
[1737743519278,0.16872089,106860.0,106850.0,0.80410529]
[1737743519603,0.16872089,106860.0,106850.0,0.82410529]
[1737743520870,0.16872089,106860.0,106850.0,0.80410529]
[1737743521298,0.16872089,106860.0,106850.0,0.79426529]
[1737743522410,0.16872089,106860.0,106850.0,0.74686529]
[1737743522657,0.16872089,106860.0,106850.0,0.55125]
[1737743522895,0.16872089,106860.0,106850.0,0.46795]
[1737743522896,0.30909089,106860.0,106850.0,0.46795]
[1737743523108,0.8107061,106860.0,106850.0,0.46795]
[1737743523313,0.8107061,106860.0,106850.0,0.45121414]
[1737743523521,0.8107061,106860.0,106850.0,0.38021414]
[1737743523933,0.83596821,106860.0,106850.0,0.35175414]
[1737743524134,0.85779305,106860.0,106850.0,0.35175414]
[1737743524685,0.99312305,106860.0,106850.0,0.25093885]
[1737743525086,0.94695305,106860.0,106850.0,0.20180885]
[1737743525727,0.94695305,106860.0,106850.0,0.17192885]
[1737743526122,1.04430034,106860.0,106850.0,0.13842885]
[1737743526473,0.01,106850.0,106800.0,0.0810419]
[1737743526647,0.327675,106820.0,106800.0,0.08153315]
[1737743526879,0.140436,106810.0,106800.0,0.54959315]
[1737743527081,0.140436,106810.0,106800.0,0.46869315]
[1737743527358,0.53894332,106810.0,106800.0,0.46869315]
[1737743527561,0.56194332,106810.0,106800.0,0.46869315]
[1737743529424,0.57256805,106810.0,106800.0,0.46869315]
[1737743530153,0.56194332,106810.0,106800.0,0.46869315]
[1737743531683,0.58020901,106810.0,106800.0,0.46869315]
[1737743531899,0.59020901,106810.0,106800.0,0.46869315]
[1737743532325,0.58020901,106810.0,106800.0,0.46869315]
[1737743532944,0.44087535,106810.0,106800.0,0.46869315]
[1737743533142,0.59203538,106810.0,106800.0,0.46869315]
[1737743534747,0.56903538,106810.0,106800.0,0.46869315]
[1737743534945,0.41787535,106810.0,106800.0,0.46869315]
[1737743535580,0.15226237,106810.0,106800.0,0.46869315]
[1737743536387,0.30226237,106810.0,106800.0,0.46869315]
[1737743537353,0.16182637,106810.0,106800.0,0.46869315]
[1737743537576,0.01182637,106810.0,106800.0,0.56700715]
[1737743537688,0.327631,106830.0,106800.0,0.69808515]
[1737743537896,0.140412,106830.0,106810.0,0.229378]
[1737743538316,0.140412,106830.0,106810.0,0.697498]
[1737743538748,0.327625,106830.0,106810.0,0.566425]
[1737743538956,0.49706903,106840.0,106810.0,0.697492]
[1737743539164,0.63046029,106840.0,106810.0,0.775992]
[1737743539378,0.514767,106850.0,106820.0,0.098294]
[1737743539572,0.62398289,106850.0,106820.0,0.697429]
[1737743539820,0.62398289,106850.0,106830.0,0.098286]
[1737743539821,0.43678989,106850.0,106830.0,0.098286]
[1737743540421,0.0118686,106850.0,106840.0,0.176777]
[1737743540659,0.16872089,106860.0,106840.0,0.176777]
[1737743540810,0.16872089,106860.0,106850.0,0.098268]
[1737743540989,0.16872089,106860.0,106840.0,0.355406]
[1737743541202,0.16872089,106860.0,106850.0,0.098268]
[1737743541588,0.1688128,106860.0,106850.0,0.098268]
[1737743543689,0.26616009,106860.0,106840.0,0.59409]
[1737743543871,0.4963618,106860.0,106840.0,0.59409]
[1737743544076,0.1688128,106860.0,106840.0,0.59409]
[1737743544287,0.1688128,106860.0,106840.0,0.692366]
[1737743544488,0.1688128,106860.0,106840.0,0.823402]
[1737743544913,0.1688128,106860.0,106840.0,0.692366]
[1737743545119,0.1688128,106860.0,106840.0,0.8234]
[1737743545531,0.1688128,106860.0,106840.0,0.692366]
[1737743545960,0.1688128,106860.0,106840.0,0.823403]
[1737743546329,0.1688128,106860.0,106840.0,0.954439]
[1737743546709,0.3091848,106860.0,106840.0,0.59409]
[1737743546912,0.140383,106850.0,106840.0,0.59409]
[1737743547115,0.140383,106850.0,106840.0,0.54649]
[1737743548381,0.140383,106850.0,106840.0,0.46799]
[1737743548774,0.8707038,106860.0,106840.0,0.46799]
[1737743549043,0.140383,106850.0,106840.0,0.46799]
[1737743549585,0.53889032,106850.0,106840.0,0.46799]
[1737743550018,0.38773029,106850.0,106840.0,0.46799]
[1737743550450,0.15,106850.0,106840.0,0.46799]
[1737743550652,0.290383,106850.0,106840.0,0.46799]
[1737743552090,0.30117487,106850.0,106840.0,0.46799]
[1737743552722,0.16079187,106850.0,106840.0,0.46799]
[1737743552922,0.01079187,106850.0,106840.0,0.46799]
[1737743553154,0.3091938,106860.0,106840.0,0.46799]
[1737743553363,0.1688128,106860.0,106840.0,0.697301]
[1737743553570,0.1688128,106860.0,106840.0,0.644365]
[1737743553780,0.4963488,106860.0,106840.0,0.54609]
[1737743553996,0.5431448,106860.0,106840.0,0.54609]
[1737743554190,0.69463534,106860.0,106840.0,0.54609]
[1737743554399,0.69463634,106860.0,106840.0,0.54609]
[1737743555583,0.00029758,106850.0,106840.0,0.54609]
[1737743557203,0.00029758,106850.0,106840.0,0.644367]
[1737743557859,0.00029758,106850.0,106840.0,0.54609]
[1737743558173,0.14068058,106850.0,106840.0,0.54609]
[1737743558410,0.00029758,106850.0,106840.0,0.54609]
[1737743558732,0.00029758,106850.0,106840.0,0.644367]
[1737743559623,0.00029758,106850.0,106840.0,0.74171429]
[1737743559824,0.00029758,106850.0,106840.0,0.81031429]
[1737743560454,0.1688128,106860.0,106850.0,0.239968]
[1737743560710,0.1688128,106860.0,106850.0,0.80526529]
[1737743561986,0.15972142,106860.0,106850.0,0.81526529]
[1737743562196,0.15972142,106860.0,106850.0,0.96526529]
[1737743562197,0.08162142,106860.0,106850.0,0.96526529]
[1737743564761,0.08162142,106860.0,106850.0,0.94526529]
[1737743564961,0.08162142,106860.0,106850.0,0.96526529]
[1737743565159,0.08162142,106860.0,106850.0,0.94522529]
[1737743565986,0.08162142,106860.0,106850.0,0.96522529]
[1737743566533,0.08162142,106860.0,106850.0,0.94522529]
[1737743567712,0.08162142,106860.0,106850.0,0.96522529]
[1737743567924,0.081919,106860.0,106850.0,0.96522529]
[1737743568132,0.081919,106860.0,106850.0,0.97522529]
[1737743569018,0.081919,106860.0,106850.0,0.96522529]
[1737743569221,0.081919,106860.0,106850.0,0.94522529]
[1737743569417,0.081919,106860.0,106850.0,0.96522529]
[1737743570478,0.081919,106860.0,106850.0,0.97522529]
[1737743571395,0.081919,106860.0,106850.0,1.00352535]
[1737743571607,0.081919,106860.0,106850.0,0.97522529]
[1737743571954,0.081919,106860.0,106850.0,0.89774829]
[1737743572398,0.081919,106860.0,106850.0,0.92606217]
[1737743572797,0.081919,106860.0,106850.0,0.88774829]
[1737743573002,0.081919,106860.0,106850.0,0.86766829]
[1737743573145,0.081919,106860.0,106850.0,0.88766829]
[1737743573591,0.081919,106860.0,106850.0,0.92599425]
[1737743575031,0.081919,106860.0,106850.0,0.97249425]
[1737743579367,0.081919,106860.0,106850.0,1.01968508]
[1737743579593,0.081919,106860.0,106850.0,1.01982678]
[1737743579798,0.044487,106860.0,106850.0,1.04282678]
[1737743579977,1e-06,106860.0,106850.0,1.04282678]
[1737743580170,1e-06,106860.0,106850.0,1.03282678]
[1737743580373,1e-06,106860.0,106850.0,0.97263595]
[1737743580571,1e-06,106860.0,106850.0,0.95263595]
[1737743580817,1e-06,106860.0,106850.0,0.80275595]
[1737743581021,1e-06,106860.0,106850.0,0.73768999]
[1737743581590,1e-06,106860.0,106850.0,0.86772999]
[1737743582701,0.37308179,106860.0,106850.0,0.4680917]
[1737743582909,0.56528997,106860.0,106850.0,0.4680917]
[1737743583107,0.62042908,106860.0,106850.0,0.4680917]
[1737743583302,0.64342908,106860.0,106850.0,0.4680917]
[1737743583510,0.64342908,106860.0,106850.0,0.42802597]
[1737743583719,0.65446052,106860.0,106850.0,0.36904108]
[1737743584065,0.65446052,106860.0,106850.0,0.21235108]
[1737743584066,0.66446052,106860.0,106850.0,0.21235108]
[1737743584307,0.64043052,106860.0,106850.0,0.03305308]
[1737743584507,0.140436,106810.0,106800.0,0.0001419]
[1737743585350,0.702158,106820.0,106800.0,0.0001419]
[1737743585573,0.140432,106820.0,106800.0,0.0001419]
[1737743585781,0.140432,106820.0,106800.0,0.00063315]
[1737743586013,0.327664,106820.0,106800.0,0.00045887]
[1737743586256,0.15,106820.0,106800.0,0.09877187]
[1737743586461,0.290423,106820.0,106800.0,0.09877187]
[1737743586642,0.290423,106820.0,106800.0,0.00045887]
[1737743586853,0.290423,106820.0,106800.0,0.09877187]
[1737743587023,0.15,106820.0,106800.0,0.09877187]
[1737743587229,0.477653,106820.0,106800.0,0.00045887]
[1737743587394,0.327634,106830.0,106810.0,0.098305]
[1737743587594,0.327634,106830.0,106800.0,0.47828116]
[1737743587808,0.33831679,106840.0,106810.0,0.229377]
[1737743588018,0.14041,106830.0,106810.0,0.46812]
[1737743588319,0.327623,106830.0,106810.0,0.566425]
[1737743588520,0.14041,106830.0,106810.0,0.566425]
[1737743588727,0.61217029,106840.0,106810.0,0.697498]
[1737743589161,0.14041,106830.0,106810.0,0.697498]
[1737743589945,0.43620048,106840.0,106810.0,0.566425]
[1737743590122,0.01123919,106840.0,106820.0,0.229357]
[1737743590328,0.33827979,106860.0,106830.0,0.098286]
[1737743590537,0.23772129,106860.0,106840.0,0.229311]
[1737743590739,1e-06,106860.0,106840.0,0.229311]
[1737743591145,0.140372,106860.0,106830.0,0.249328]
[1737743591285,0.140372,106860.0,106840.0,0.098277]
[1737743591493,0.140372,106860.0,106830.0,0.34667429]
[1737743591494,0.47864379,106860.0,106830.0,0.34667429]
[1737743591698,0.66581579,106860.0,106830.0,0.3467662]
[1737743592055,0.47864379,106860.0,106830.0,0.4778062]
[1737743592388,0.66581379,106860.0,106830.0,0.3467652]
[1737743592593,0.67685425,106860.0,106830.0,0.3467652]
[1737743592796,0.48968425,106860.0,106830.0,0.4778142]
[1737743592998,0.48968425,106860.0,106840.0,0.098277]
[1737743593202,0.15141246,106860.0,106840.0,0.098277]
[1737743593357,0.15141246,106860.0,106830.0,0.3467652]
[1737743593558,0.33857346,106860.0,106840.0,0.098277]
[1737743593890,0.15141246,106860.0,106840.0,0.098277]
[1737743594094,0.01104146,106860.0,106840.0,0.229307]
[1737743594435,0.01104146,106860.0,106840.0,0.717296]
[1737743594649,1e-06,106860.0,106850.0,0.098268]
[1737743594870,1e-06,106860.0,106850.0,0.195968]
[1737743595072,1e-06,106860.0,106850.0,0.663918]
[1737743595718,1e-06,106860.0,106850.0,0.76126529]
[1737743597416,0.57227325,106890.0,106850.0,0.89228229]
[1737743597620,0.140345,106880.0,106860.0,0.098257]
[1737743598025,0.64167142,106890.0,106860.0,0.229268]
[1737743598372,0.140344,106880.0,106860.0,0.229268]
[1737743598597,0.140344,106880.0,106860.0,0.098257]
[1737743598800,0.32747,106880.0,106850.0,1.02329929]
[1737743599202,0.47859079,106880.0,106850.0,0.56565]
[1737743599398,0.140357,106870.0,106850.0,0.663916]
[1737743599801,0.66572779,106880.0,106850.0,0.79494]
[1737743600009,0.514617,106880.0,106850.0,0.79494]
[1737743600206,0.514614,106880.0,106850.0,0.79494]
[1737743600480,0.62284454,106890.0,106860.0,0.098257]
[1737743600682,0.01092125,106890.0,106870.0,0.098248]
[1737743601097,0.514529,106900.0,106870.0,0.229248]
[1737743601401,0.514529,106900.0,106870.0,0.79445529]
[1737743601954,0.51467638,106900.0,106870.0,0.79445529]
[1737743602155,0.140331,106890.0,106870.0,0.66345529]
[1737743602469,0.76300808,106890.0,106870.0,0.46786]
[1737743603110,0.00029758,106880.0,106870.0,0.46786]
[1737743603534,0.53909966,106880.0,106870.0,0.46786]
[1737743603748,0.56209966,106880.0,106870.0,0.46786]
[1737743606038,0.57253345,106880.0,106870.0,0.46786]
[1737743608540,0.59132379,106880.0,106870.0,0.46786]
[1737743609461,0.17952171,106880.0,106870.0,0.46786]
[1737743609664,0.15107537,106880.0,106870.0,0.46786]
[1737743610702,0.39953345,106880.0,106870.0,0.46786]
[1737743612424,0.73654907,106880.0,106870.0,0.46786]
[1737743612608,0.64953345,106880.0,106870.0,0.46786]
[1737743614266,0.49842266,106880.0,106870.0,0.46786]
[1737743614906,0.10029758,106880.0,106870.0,0.66111]
[1737743615111,0.10029758,106880.0,106870.0,0.75845729]
[1737743615232,0.10029758,106880.0,106870.0,0.80765729]
[1737743615882,0.10029758,106880.0,106870.0,0.69031]
[1737743616386,0.10029758,106880.0,106870.0,0.71031]
[1737743616639,0.10029758,106880.0,106870.0,0.69031]
[1737743616881,0.24064158,106880.0,106870.0,0.59206]
[1737743617470,0.24064158,106880.0,106870.0,0.51706]
[1737743618689,0.10029758,106880.0,106870.0,0.51706]
[1737743619078,0.10029758,106880.0,106870.0,0.61531]
[1737743619866,0.10029758,106880.0,106870.0,0.51706]
[1737743620536,0.10029758,106880.0,106870.0,0.61531]
[1737743621307,0.10029758,106880.0,106870.0,0.63531]
[1737743621894,0.10029758,106880.0,106870.0,0.53706]
[1737743622361,0.10029758,106880.0,106870.0,0.51706]
[1737743622807,0.34138781,106880.0,106870.0,0.51706]
[1737743623330,0.34138781,106880.0,106870.0,0.46786]
[1737743624153,0.5887351,106880.0,106870.0,0.46786]
[1737743626306,0.59894289,106880.0,106870.0,0.46786]
[1737743626864,0.61729819,106880.0,106870.0,0.46786]
[1737743627273,0.61729819,106880.0,106870.0,0.4680017]
[1737743628881,0.61729819,106880.0,106870.0,0.46781181]
[1737743629142,0.64029819,106880.0,106870.0,0.46781181]
[1737743630386,0.71729819,106880.0,106870.0,0.46781181]
[1737743631311,0.61655196,106880.0,106870.0,0.46781181]
[1737743631684,0.51920467,106880.0,106870.0,0.46781181]
[1737743631893,0.6199509,106880.0,106870.0,0.46781181]
[1737743632096,0.80646819,106880.0,106870.0,0.46781181]
[1737743632299,0.80646819,106880.0,106870.0,0.39718017]
[1737743632495,0.80646819,106880.0,106870.0,0.36421344]
[1737743633339,0.89721442,106880.0,106870.0,0.26320141]
[1737743633461,0.89721442,106880.0,106870.0,0.18381079]
[1737743633658,0.01,106870.0,106850.0,0.0001417]
[1737743633872,0.46220975,106860.0,106850.0,0.0001417]
[1737743634073,0.36146352,106860.0,106850.0,0.0001417]
[1737743634458,0.33846352,106860.0,106850.0,0.0001417]
[1737743637349,0.23771729,106860.0,106850.0,0.0001417]
[1737743637755,0.48846352,106860.0,106850.0,0.0001417]
[1737743640402,0.49865912,106860.0,106850.0,0.0001417]
[1737743641125,0.51740018,106860.0,106850.0,0.0001417]
[1737743641530,0.49865912,106860.0,106850.0,0.0001417]
[1737743641736,0.0101956,106860.0,106850.0,0.0001417]
[1737743641982,0.514677,106870.0,106850.0,0.0001417]
[1737743642204,0.61202429,106870.0,106850.0,0.0001417]
[1737743642635,0.71277052,106870.0,106850.0,0.0001417]
[1737743643434,0.42826523,106870.0,106850.0,0.0001417]
[1737743643640,0.34064258,106880.0,106860.0,0.0981]
[1737743643794,0.20029758,106880.0,106870.0,0.045]
[1737743644018,0.30104381,106880.0,106870.0,0.045]
[1737743644219,0.44138781,106880.0,106870.0,0.045]
[1737743644925,0.140357,106870.0,106860.0,0.0781]
[1737743645146,0.140357,106870.0,106850.0,0.0451417]
[1737743645147,0.14037,106860.0,106850.0,0.0451417]
[1737743645374,0.33846352,106860.0,106850.0,0.0451417]
[1737743646436,0.33846352,106860.0,106850.0,0.0001417]
[1737743646437,0.58920975,106860.0,106850.0,0.0001417]
[1737743646840,0.61220975,106860.0,106850.0,0.0001417]
[1737743647882,0.58920975,106860.0,106850.0,0.0001417]
[1737743648300,0.48846352,106860.0,106850.0,0.0001417]
[1737743648825,0.49890411,106860.0,106850.0,0.0001417]
[1737743650085,0.39815788,106860.0,106850.0,0.0001417]
[1737743650266,0.51731938,106860.0,106850.0,0.0001417]
[1737743651150,0.41657315,106860.0,106850.0,0.0001417]
[1737743651582,0.16922586,106860.0,106850.0,0.0001417]
[1737743651932,0.31922586,106860.0,106850.0,0.0001417]
[1737743653113,0.16044059,106860.0,106850.0,0.0001417]
[1737743653626,0.30081059,106860.0,106850.0,0.0001417]
[1737743653831,0.16044059,106860.0,106850.0,0.0001417]
[1737743654003,0.16044059,106860.0,106850.0,0.1457097]
[1737743654182,0.16044059,106860.0,106850.0,0.0474417]
[1737743654828,0.01044059,106860.0,106850.0,0.2430097]
[1737743655043,0.00029758,106870.0,106850.0,0.2430097]
[1737743655197,0.14065658,106870.0,106850.0,0.2430097]
[1737743655631,0.29065658,106870.0,106850.0,0.2430097]
[1737743656484,0.30095154,106870.0,106850.0,0.2430097]
[1737743657661,0.48809454,106870.0,106850.0,0.1447417]
[1737743658746,0.30095154,106870.0,106850.0,0.2430087]
[1737743659355,0.16059254,106870.0,106850.0,0.3740327]
[1737743659580,0.32069758,106870.0,106860.0,0.19919482]
[1737743659791,0.32069758,106870.0,106860.0,0.198259]
[1737743660729,0.71180081,106870.0,106860.0,0.08]
[1737743662544,0.61105458,106870.0,106860.0,0.08]
[1737743662767,0.71180081,106870.0,106860.0,0.08]
[1737743664714,0.61105458,106870.0,106860.0,0.08]
[1737743664914,0.47069758,106870.0,106860.0,0.08]
[1737743665113,0.15029758,106870.0,106860.0,0.08]
[1737743665340,0.29065458,106870.0,106860.0,0.08]
[1737743665474,0.39140081,106870.0,106860.0,0.08]
[1737743665914,0.4887481,106870.0,106860.0,0.08]
[1737743666126,0.61077,106860.0,106850.0,0.0001417]
[1737743666375,0.80886352,106860.0,106850.0,0.0001417]
[1737743666601,0.90960975,106860.0,106850.0,0.0001417]
[1737743667341,0.80886352,106860.0,106850.0,0.0001417]